Workbook

Sheet паспорт
A1: ПАТ "УКРТРАНСГАЗ" | G1: ПАСПОРТ ФІЗИКО-ХІМІЧНИХ ПОКАЗНИКІВ ПРИРОДНОГО ГАЗУ № 137
A2: Філія "УМГ "КИЇВТРАНСГАЗ" | G2: переданого Диканським ЛВУМГ та прийнятого ПАТ "Харківгаз"
A3: Решетилівський п/м Диканське ЛВУМГ | G3: Маршрут № 137
A4: Вимірювальна хіміко-аналітична лабораторія | K4: Газопровід - підвід УКПГ Ланна
A5: Свідоцтво № 123/15 чинно до 31.12.2018 р. | K5: по газопроводу "ЄФРЕМІВКА-ДИКАНЬКА-КИЇВ" | V5: за період з | X5: 2017-03-01 | Z5: по | AA5: 2017-03-31
A7: Число місяця | B7: Компонентний склад, % мол. | N7: Фізико-хімічні показники газу обчислені на основі компонентного складу, 101,325 кПа | X7: Температура точки роси вологи (Р = 3.92 МПа), ºС | Y7: Температура точки роси вуглеводнів, ºС | Z7: Вміст сірководню, г/м3 | AA7: Вміст меркаптанової сірки, г/м3 | AB7: Вміст механічних домішок, г/м3
N8: Густина абсолютна, кг/м3,при 20 ºС, | O8: Температура вимірювання/згоряння при 20/25°С
B9: метан, С1 | C9: етан, С2 | D9: пропан, С3 | E9: ізо-бутан, і-С4 | F9: н-бутан, н-С4 | G9: нео-пентан, нео-С5 | H9: ізо-пентан, і-С5 | I9: н-пентан, н-С5 | J9: гексани та вищі, С6+ | K9: кисень, О2 | L9: азот, N2 | M9: діоксид вуглецю, CО2 | O9: Теплота згоряння нижча | R9: Теплота згоряння вища | U9: Число Воббе вище
O10: ккал/м3 | P10: МДж/м3 | Q10: кВт⋅год/м3 | R10: ккал/м3 | S10: МДж/м3 | T10: кВт⋅год/м3 | U10: ккал/м3 | V10: МДж/м3 | W10: кВт⋅год/м3
A11: 1 | B11: 92.9659 | C11: 3.8974 | D11: 1.0293 | E11: 0.1475 | F11: 0.2075 | G11: 0.0049 | H11: 0.0628 | I11: 0.046 | J11: 0.1089 | K11: 0.0054 | L11: 1.2861 | M11: 0.2383 | N11: 0.7245 | O11: 8362 | P11: 35.0081 | Q11: =P11/3.6 -> 9.724472222 | R11: 9263 | S11: 38.7842 | T11: =S11/3.6 -> 10.77338889 | U11: 11944 | V11: 50.0071 | W11: =V11/3.6 -> 13.89086111 | AC11: =SUM(B11:M11)+$K$42+$N$42 -> 100
A12: 2 | O12: 8362 | P12: 35.0081 | Q12: 9.724472222 | R12: 9263 | S12: 38.7842 | T12: 10.77338889 | AC12: 0
A13: 3 | O13: 8362 | P13: 35.0081 | Q13: =P13/3.6 -> 9.724472222 | R13: 9263 | S13: 38.7842 | T13: 10.77338889 | AC13: 0 | AD13: =IF(AC13=100,"ОК"," ") -> 
A14: 4 | O14: 8362 | P14: 35.0081 | Q14: 9.724472222 | R14: 9263 | S14: 38.7842 | T14: 10.77338889 | AC14: 0 | AD14: =IF(AC14=100,"ОК"," ") -> 
A15: 5 | O15: 8362 | P15: 35.0081 | Q15: 9.724472222 | R15: 9263 | S15: 38.7842 | T15: 10.77338889 | AC15: 0
A16: 6 | O16: 8362 | P16: 35.0081 | Q16: 9.724472222 | R16: 9263 | S16: 38.7842 | T16: 10.77338889 | AC16: 0
A17: 7 | O17: 8362 | P17: 35.0081 | Q17: 9.724472222 | R17: 9263 | S17: 38.7842 | T17: 10.77338889 | X17: 10.1 | Y17: 0.2 | AC17: 0
A18: 8 | O18: 8362 | P18: 35.0081 | Q18: 9.724472222 | R18: 9263 | S18: 38.7842 | T18: 10.77338889 | AC18: 0
A19: 9 | B19: 92.8763 | C19: 3.9219 | D19: 1.0387 | E19: 0.1503 | F19: 0.2139 | G19: 0.0046 | H19: 0.0665 | I19: 0.0499 | J19: 0.1382 | K19: 0.0051 | L19: 1.2784 | M19: 0.2562 | N19: 0.7261 | O19: 8376 | P19: 35.0687 | Q19: =P19/3.6 -> 9.741305556 | R19: 9279 | S19: 38.849 | T19: =S19/3.6 -> 10.79138889 | U19: 11951 | V19: 50.0349 | W19: =V19/3.6 -> 13.89858333 | AC19: 100 | AD19: ОК
A20: 10 | O20: 8376 | P20: 35.0687 | Q20: =P20/3.6 -> 9.741305556 | R20: 9279 | S20: 38.849 | T20: =S20/3.6 -> 10.79138889 | AC20: 0
A21: 11 | O21: 8376 | P21: 35.0687 | Q21: =P21/3.6 -> 9.741305556 | R21: 9279 | S21: 38.849 | T21: 10.79138889 | AC21: 0
A22: 12 | O22: 8376 | P22: 35.0687 | Q22: 9.741305556 | R22: 9279 | S22: 38.849 | T22: 10.79138889 | AC22: 0
A23: 13 | O23: 8376 | P23: 35.0687 | Q23: 9.741305556 | R23: 9279 | S23: 38.849 | T23: 10.79138889 | AC23: 0
A24: 14 | O24: 8376 | P24: 35.0687 | Q24: 9.741305556 | R24: 9279 | S24: 38.849 | T24: 10.79138889 | AC24: 0
A25: 15 | O25: 8376 | P25: 35.0687 | Q25: 9.741305556 | R25: 9279 | S25: 38.849 | T25: 10.79138889 | X25: 12.7 | Y25: -3.7 | AC25: 0
A26: 16 | B26: 92.9463 | C26: 3.8717 | D26: 1.0354 | E26: 0.1494 | F26: 0.2109 | G26: 0.0043 | H26: 0.0663 | I26: 0.0496 | J26: 0.1403 | K26: 0.0053 | L26: 1.2781 | M26: 0.2425 | N26: 0.7256 | O26: 8373 | P26: 35.06 | Q26: 9.738888889 | R26: 9276 | S26: 38.84 | T26: 10.78888889 | U26: 11951 | V26: 50.04 | W26: =V26/3.6 -> 13.9 | AC26: 100.0001
A27: 17 | O27: 8373 | P27: 35.06 | Q27: =P27/3.6 -> 9.738888889 | R27: 9276 | S27: 38.84 | T27: =S27/3.6 -> 10.78888889 | AC27: 0
A28: 18 | O28: 8373 | P28: 35.06 | Q28: =P28/3.6 -> 9.738888889 | R28: 9276 | S28: 38.84 | T28: 10.78888889 | AC28: 0
A29: 19 | O29: 8373 | P29: 35.06 | Q29: 9.738888889 | R29: 9276 | S29: 38.84 | T29: 10.78888889 | AC29: 0
A30: 20 | O30: 8373 | P30: 35.06 | Q30: 9.738888889 | R30: 9276 | S30: 38.84 | T30: 10.78888889 | AC30: 0 | AD30: =IF(AC30=100,"ОК"," ") -> 
A31: 21 | O31: 8373 | P31: 35.06 | Q31: 9.738888889 | R31: 9276 | S31: 38.84 | T31: 10.78888889 | X31: 15.2 | Y31: -4.4 | AC31: 0
A32: 22 | O32: 8373 | P32: 35.06 | Q32: =P32/3.6 -> 9.738888889 | R32: 9276 | S32: 38.84 | T32: =S32/3.6 -> 10.78888889 | AC32: 0
A33: 23 | B33: 92.7925 | C33: 3.9471 | D33: 1.0492 | E33: 0.1515 | F33: 0.2174 | G33: 0.0053 | H33: 0.0692 | I33: 0.0525 | J33: 0.1768 | K33: 0.0053 | L33: 1.2961 | M33: 0.2369 | N33: 0.7276 | O33: 8393 | P33: 35.14 | Q33: 9.761111111 | R33: 9297 | S33: 38.93 | T33: 10.81388889 | U33: 11962 | V33: 50.08 | W33: 13.91111111 | AC33: 99.9998 | AD33: =IF(AC33=100,"ОК"," ") -> 
A34: 24 | O34: 8393 | P34: 35.14 | Q34: 9.761111111 | R34: 9297 | S34: 38.93 | T34: 10.81388889 | AC34: 0
A35: 25 | O35: 8393 | P35: 35.14 | Q35: 9.761111111 | R35: 9297 | S35: 38.93 | T35: 10.81388889 | AC35: 0
A36: 26 | O36: 8393 | P36: 35.14 | Q36: 9.761111111 | R36: 9297 | S36: 38.93 | T36: 10.81388889 | AC36: 0
A37: 27 | O37: 8393 | P37: 35.14 | Q37: 9.761111111 | R37: 9297 | S37: 38.93 | T37: 10.81388889 | AC37: 0
A38: 28 | O38: 8393 | P38: 35.14 | Q38: 9.761111111 | R38: 9297 | S38: 38.93 | T38: 10.81388889 | AC38: 0
A39: 29 | O39: 8393 | P39: 35.14 | Q39: 9.761111111 | R39: 9297 | S39: 38.93 | T39: 10.81388889 | X39: 16.6 | Y39: -1.6 | AB39: відсут. | AC39: 0
A40: 30 | B40: 93.0667 | C40: 3.8174 | D40: 1.0234 | E40: 0.1477 | F40: 0.208 | G40: 0.0057 | H40: 0.0645 | I40: 0.048 | J40: 0.1209 | K40: 0.0051 | L40: 1.2429 | M40: 0.2498 | N40: 0.7243 | O40: 8363 | P40: 35.02 | Q40: 9.727777778 | R40: 9265 | S40: 38.79 | T40: 10.775 | U40: 11948 | V40: 50.02 | W40: 13.89444444 | Z40: <0,006 | AA40: <0,02 | AC40: 100.0001
A41: 31 | O41: 8363 | P41: 35.02 | Q41: 9.727777778 | R41: 9265 | S41: 38.79 | T41: 10.775 | AC41: 0
A42: Рівень одоризації відповідає чинним нормативним документам | O42: 8374.063407 | P42: 35.06133675 | Q42: 9.739260209 | R42: 9276.651896 | S42: 38.84173475 | T42: 10.78937076
H43: Середньозважене значення теплоти згоряння:
B46: Заступник начальника управління Диканського ЛВУМГ | O46: Герасименко І.М. | V46: 03.04.17р.
C47: Підрозділу підприємства, якому підпорядкована лабораторія | O47: прізвище | R47: підпис | V47: дата
B48: Завідувач лабораторією | O48: Славінська А.В. | V48: =V46 -> 03.04.17р.
C49: Лабораторія, де здійснювалось вимірювання газу | O49: прізвище | R49: підпис | V49: дата
B50: Начальник служби ГВ та М | O50: Левадний С.А. | V50: =V46 -> 03.04.17р.
C51: Підрозділу, відповідального за облік газу за маршрутом | O51: прізвище | R51: підпис | V51: дата

Sheet додаток
A2: Додаток до Паспорту фізико-хімічних показників природного газу №137
A4: Область | B4: ГРС, прямий споживач | C4: Cередньозважене значення вищої теплоти згоряння
C5: МДж/м³ | D5: ккал/м³ | E5: кВт*год./м³
A6: Харківська область | B6: ГРС Зоряне (Ленінка) | C6: 38.84173475 | D6: 9277.189095 | E6: 10.78937076
A7: Середньозважене значення вищої теплоти згоряння по маршруту № 137 | C7: 38.84173475 | D7: 9277.189095 | E7: 10.78937076
A11: Заступник начальника управління Диканського ЛВУМГ | D11: Герасименко І.М. | F11: 03.04.17р.
A12: Підрозділу підприємства, якому підпорядкована лабораторія | D12: прізвище | E12: підпис | F12: дата
A13: Завідувач лабораторією | D13: Славінська А.В. | F13: 03.04.17р.
A14: Лабораторія, де здійснювалось вимірювання газу | D14: прізвище | E14: підпис | F14: дата
A15: Начальник служби ГВ та М | D15: Левадний С.А. | F15: 03.04.17р.
A16: Підрозділу, відповідального за облік газу за маршрутом | D16: прізвище | E16: підпис | F16: дата

Sheet variablesList (hidden)
A1: 3 | B1: x:\gaysin | C1: 10, 11, 24, 25, 127, 128, 132, 180, 207, 215 | D1: x:\
B2: x:\Illinci
B3: x:\Talne
